bitfinex-derivatives/quotes_SOLF0:USTF0_20250309
["timestamp","ask_amount","ask_price","bid_price","bid_amount"]
[1741560615205,4.14758273,126.94,126.92,7.8792]
[1741560615403,4.14758273,126.94,126.91,32.21702408]
[1741560617202,4.14758273,126.94,126.92,7.8792]
[1741560617403,4.14758273,126.94,126.91,32.21702408]
[1741560618602,0.05798273,126.94,126.91,32.21702408]
[1741560622610,0.05798273,126.94,126.91,40.09682408]
[1741560622803,0.05798273,126.94,126.91,32.21702408]
[1741560628814,0.05798273,126.94,126.92,20.1097859]
[1741560629411,0.05798273,126.94,126.93,7.8789]
[1741560632119,208.72182293,127.03,126.99,7.875]
[1741560632311,4.859404,127.02,126.99,7.875]
[1741560632515,4.859404,127.01,126.96,52.2697859]
[1741560632817,4.859404,127.0,126.94,20.1097859]
[1741560633008,4.859404,126.99,126.94,52.2697859]
[1741560633208,5.9036,127.03,126.98,20.1097859]
[1741560633412,4.8601255,127.02,126.98,27.9853859]
[1741560633613,4.8601255,127.01,126.98,27.9853859]
[1741560633814,0.05623238,127.01,126.99,0.05102228]
[1741560634316,4.85931536,127.0,126.93,32.16]
[1741560634620,4.85931536,126.99,126.93,40.0385]
[1741560634815,4.85931536,126.98,126.93,40.0385]
[1741560635015,52.2697859,127.01,126.93,40.0385]
[1741560635213,4.85875349,127.0,126.92,60.1486859]
[1741560635422,7.878,126.95,126.92,32.16]
[1741560635609,0.05529587,126.98,126.92,32.16]
[1741560635809,4.85758467,126.97,126.92,40.09703336]
[1741560636019,0.05365067,126.96,126.92,52.32741926]
[1741560636213,0.05365067,126.96,126.92,64.37701466]
[1741560636718,0.05365067,126.96,126.93,7.8788]
[1741560637218,0.05365067,126.96,126.92,64.37701466]
[1741560637522,0.05365067,126.96,126.93,7.8788]
[1741560637917,7.93085067,126.96,126.93,7.8788]
[1741560639022,0.05365067,126.96,126.94,7.8782]
[1741560639621,0.05365067,126.96,126.92,64.37701466]
[1741560639824,0.05365067,126.96,126.93,7.8785]
[1741560640320,7.93075067,126.96,126.93,7.8785]
[1741560640521,0.05365067,126.96,126.92,0.05763336]
[1741560641518,4.85978403,126.95,126.92,0.05763336]
[1741560641720,0.05365067,126.96,126.92,0.05763336]
[1741560641914,0.05365067,126.96,126.89,32.1593813]
[1741560642114,37.01927432,126.95,126.86,32.16]
[1741560642314,37.01865562,126.94,126.8,130.47277423]
[1741560642518,7.8824,126.88,126.83,32.16]
[1741560642716,32.16,126.91,126.83,32.16]
[1741560642917,9.01011403,126.9,126.83,32.16]
[1741560643122,4.85721403,126.89,126.86,0.05620765]
[1741560643327,4.9083489,126.88,126.82,32.16]
[1741560643528,0.05440967,126.88,126.82,32.16]
[1741560643727,7.93670967,126.88,126.82,32.16]
[1741560643924,0.05440967,126.88,126.82,64.3193813]
[1741560644430,7.93690967,126.88,126.83,7.8848]
[1741560644623,7.93690967,126.88,126.84,0.05296319]
[1741560644824,0.05440967,126.88,126.84,0.05296319]
[1741560645135,7.8831,126.87,126.84,0.05296319]
[1741560645519,0.05440967,126.88,126.81,32.16]
[1741560645723,4.84513268,126.87,126.81,32.16]
[1741560645927,32.16,126.88,126.81,40.0463]
[1741560646230,4.84529639,126.87,126.81,40.0463]
[1741560646423,32.16,126.88,126.81,40.0463]
[1741560646623,4.84169757,126.87,126.81,40.0463]
[1741560646828,0.05341364,126.85,126.83,0.05938883]
[1741560647528,0.05341364,126.85,126.84,7.8845]
[1741560648831,0.05341364,126.85,126.83,7.94398883]
[1741560649030,0.05341364,126.85,126.83,0.05938883]
[1741560650030,0.05341364,126.85,126.84,7.8845]
[1741560651429,0.05341364,126.85,126.84,40.0445]
[1741560652222,4.0857,126.9,126.84,64.3193813]
[1741560652425,4.0857,126.9,126.86,32.1593813]
[1741560652832,4.0857,126.9,126.88,7.8817]
[1741560653236,11.9666,126.9,126.86,32.1593813]
[1741560653437,12.01872714,126.9,126.88,0.05438808]
[1741560653733,4.13782714,126.9,126.84,64.3193813]
[1741560654134,12.01892714,126.9,126.84,64.3193813]
[1741560654630,12.01892714,126.9,126.87,7.8826]
[1741560655930,4.13782714,126.9,126.88,7.8819]
[1741560658234,12.01872714,126.9,126.87,7.8824]
[1741560658430,4.13782714,126.9,126.86,20.17828389]
[1741560658935,12.01892714,126.9,126.86,28.06108389]
[1741560659132,4.13782714,126.9,126.86,0.05524478]
[1741560659431,7.8827,126.87,126.83,7.8847]
[1741560659646,2.0439,126.89,126.83,7.8847]
[1741560660337,2.0439,126.89,126.79,261.29172589]
[1741560660531,22.16693911,126.89,126.8,52.28303911]
[1741560660837,0.05642576,126.85,126.83,0.05471804]
[1741560661332,7.94032576,126.85,126.83,7.93971804]
[1741560661636,7.94032576,126.85,126.83,0.05471804]
[1741560662541,7.8845,126.84,126.83,0.05471804]
[1741560662835,32.23642576,126.85,126.79,7.8875]
[1741560663136,2.1225,126.84,126.78,20.12303911]
[1741560663640,10.0075,126.84,126.78,20.12303911]
[1741560663837,2.1225,126.84,126.8,7.8867]
[1741560664039,0.05215501,126.82,126.8,0.06049742]
[1741560666037,0.05215501,126.82,126.8,7.94699742]
[1741560666338,0.05215501,126.82,126.8,0.06049742]
[1741560667536,7.93795501,126.82,126.8,0.06049742]
[1741560667836,0.05215501,126.82,126.8,0.06049742]
[1741560669540,0.05215501,126.82,126.81,7.8864]
[1741560669742,0.05215501,126.82,126.8,0.06049742]
[1741560670236,32.18,126.81,126.76,20.12303911]
[1741560670445,32.18,126.81,126.74,20.12303911]
[1741560670938,32.18,126.81,126.76,7.8892]
[1741560671439,0.05923026,126.8,126.77,0.05120004]
[1741560672038,0.05923026,126.8,126.78,7.8882]
[1741560672238,0.05923026,126.8,126.78,20.12303911]
[1741560672740,0.05923026,126.8,126.79,7.8876]
[1741560673740,34.3025,126.84,126.82,7.8855]
[1741560674047,2.0391,126.87,126.83,20.12303911]
[1741560674235,34.1119,126.89,126.83,20.12303911]
[1741560674441,1.9319,126.89,126.86,7.8828]
[1741560674641,1.9319,126.89,126.83,52.30303911]
[1741560674837,9.8136,126.89,126.85,7.8835]
[1741560675043,0.05416561,126.87,126.85,20.17632153]
[1741560675446,0.05416561,126.87,126.85,28.05982153]
[1741560675653,0.05416561,126.87,126.85,20.17632153]
[1741560677547,0.05416561,126.87,126.85,0.05328242]
[1741560677847,0.05416561,126.87,126.8,20.12303911]
[1741560678046,7.8863,126.82,126.8,32.18]
[1741560678241,32.18,126.85,126.78,20.12303911]
[1741560679042,0.04972948,126.83,126.8,0.05456769]
[1741560679244,32.18,126.82,126.76,20.12303911]
[1741560679441,2.0933,126.81,126.76,20.12303911]
[1741560680044,7.888,126.79,126.76,20.12303911]
[1741560680551,0.06047445,126.79,126.77,7.8883]
[1741560681756,0.06047445,126.79,126.77,28.01133911]
[1741560682351,0.06047445,126.79,126.78,7.8883]
[1741560683555,0.06047445,126.79,126.77,20.12303911]
[1741560683950,2.1211,126.85,126.78,32.18]
[1741560684148,2.1211,126.85,126.82,7.8854]
[1741560685256,0.0540317,126.85,126.82,7.94552326]
[1741560685854,0.0540317,126.85,126.82,20.18316237]
[1741560686156,7.9383317,126.85,126.82,20.18316237]
[1741560686356,0.0540317,126.85,126.82,0.06012326]
[1741560687761,7.8846,126.84,126.82,0.06012326]
[1741560688255,0.0540317,126.85,126.82,0.06012326]
[1741560689558,7.8852,126.83,126.82,0.06012326]
[1741560690453,7.8872,126.8,126.76,32.21648319]
[1741560690653,34.1818,126.84,126.76,64.37648319]
[1741560690854,4.85928236,126.83,126.76,64.37648319]
[1741560691151,7.8861,126.82,126.79,7.8872]
[1741560691355,34.1818,126.84,126.76,64.37648319]
[1741560691560,7.8871,126.8,126.77,7.8886]
[1741560691753,7.8871,126.8,126.79,0.05668636]
[1741560692155,1.9982,126.81,126.74,64.37648319]
[1741560692659,1.9982,126.81,126.77,7.8885]
[1741560692856,1.9982,126.81,126.74,64.37648319]
[1741560693261,1.9982,126.81,126.78,7.8879]
[1741560693559,0.05784807,126.79,126.77,32.16]
[1741560693949,7.8855,126.83,126.77,32.16]
[1741560694353,0.05701172,126.79,126.77,32.19240417]
[1741560694550,0.05701172,126.79,126.78,7.8883]
[1741560695758,9.8195,126.85,126.81,7.8859]
[1741560695952,1.9353,126.85,126.81,7.8859]
[1741560696156,1.9353,126.85,126.8,32.16]
[1741560696361,1.9353,126.85,126.82,7.8857]
[1741560696564,1.9322,126.86,126.81,32.21648319]
[1741560696757,1.9322,126.86,126.8,32.16]
[1741560696958,0.05598034,126.85,126.82,0.05272918]
[1741560697369,0.05598034,126.85,126.83,32.16]
[1741560697959,0.05598034,126.85,126.83,40.0449]
[1741560698360,0.05598034,126.85,126.83,32.16]
[1741560698762,0.05598034,126.85,126.84,7.8845]
[1741560699161,0.05598034,126.85,126.83,32.16]
[1741560699366,7.94018034,126.85,126.83,32.16]
[1741560699566,0.05598034,126.85,126.82,0.05272918]
[1741560699867,7.8852,126.83,126.82,0.05272918]
[1741560700067,32.21598034,126.85,126.82,0.05272918]
[1741560700365,7.8852,126.83,126.82,0.05272918]
[1741560700569,12.73976725,126.83,126.82,0.05272918]
[1741560700770,32.21598034,126.85,126.77,32.16]
[1741560700965,6.90509126,126.84,126.77,40.0486]
[1741560701166,4.85569126,126.83,126.77,32.16]
[1741560701367,2.0494,126.84,126.78,32.21648319]
[1741560701769,32.16,126.85,126.78,32.21648319]
[1741560701969,38.4532,126.88,126.78,32.21648319]
[1741560702271,0.05092282,126.82,126.8,0.03668672]
[1741560702472,0.05092282,126.82,126.8,32.19668672]
[1741560702666,0.05092282,126.82,126.8,32.16]
[1741560702873,38.4532,126.88,126.8,64.37648319]
[1741560703072,0.05688006,126.82,126.8,64.41316991]
[1741560703269,38.4532,126.88,126.8,64.37648319]
[1741560703465,0.05770295,126.82,126.8,64.41316991]
[1741560703666,7.883,126.87,126.8,64.37648319]
[1741560703865,7.883,126.87,126.84,7.8842]
[1741560704374,4.86172546,126.86,126.83,32.16]
[1741560704574,4.2438,126.88,126.86,7.883]
[1741560704870,51.06745355,126.92,126.84,32.21648319]
[1741560704871,0.05328636,126.86,126.84,32.21648319]
[1741560705277,4.1761,126.92,126.85,7.8839]
[1741560705477,4.8607434,126.91,126.85,7.8839]
[1741560705680,0.05628135,126.86,126.85,7.8839]
[1741560706082,6.154,126.92,126.84,32.21648319]
[1741560706283,4.86218034,126.91,126.87,32.21648319]
[1741560706578,11.9462,126.92,126.87,64.37648319]
[1741560706884,0.05653303,126.9,126.88,7.8816]
[1741560707076,0.05653303,126.9,126.88,0.05546351]
[1741560708082,0.05653303,126.9,126.88,7.93716351]
[1741560708483,0.05653303,126.9,126.88,0.05546351]
[1741560712686,36.98659552,126.89,126.82,7.8854]
[1741560712881,6.88529552,126.88,126.82,7.8854]
[1741560713082,2.0387,126.88,126.82,7.8854]
[1741560713285,2.0387,126.88,126.84,7.8842]
[1741560713686,2.0387,126.88,126.83,32.21648319]
[1741560714084,0.05601662,126.87,126.85,0.03892321]
[1741560714483,7.8833,126.86,126.85,0.03892321]
[1741560715077,7.93891662,126.87,126.85,0.03892321]
[1741560715886,0.05601662,126.87,126.85,7.92282321]
[1741560716086,0.05601662,126.87,126.85,0.03892321]
[1741560716487,7.93901662,126.87,126.85,0.03892321]
[1741560717588,0.05601662,126.87,126.85,0.03892321]
[1741560718189,7.8833,126.86,126.85,0.03892321]
[1741560718390,0.05601662,126.87,126.85,0.03892321]
[1741560718782,7.8833,126.86,126.85,0.03892321]
[1741560718990,0.05601662,126.87,126.85,0.03892321]
[1741560719290,0.05601662,126.87,126.85,7.92242321]
[1741560720685,0.05601662,126.87,126.86,7.8833]
[1741560721284,0.05601662,126.87,126.85,0.03892321]
[1741560721480,0.05601662,126.87,126.85,7.92252321]
[1741560721887,0.05601662,126.87,126.85,0.03892321]
[1741560723397,7.8833,126.86,126.85,0.03892321]
[1741560723592,0.05601662,126.87,126.8,32.21648319]
[1741560723791,6.86952692,126.86,126.79,292.3]
[1741560723997,7.8852,126.83,126.8,7.8866]
[1741560724291,34.1562,126.86,126.79,260.16]
[1741560724492,25.00121439,126.85,126.76,20.1473713]
[1741560724691,4.85384309,126.84,126.76,20.1473713]
[1741560724887,36.99384309,126.83,126.76,20.1473713]
[1741560725080,7.8867,126.81,126.77,7.8884]
[1741560725285,32.14,126.83,126.77,7.8884]
[1741560725590,0.05725882,126.8,126.77,7.8884]
[1741560725791,0.05725882,126.8,126.78,7.8878]
[1741560726188,0.05725882,126.8,126.76,20.1473713]
[1741560726393,0.05725882,126.8,126.78,7.8878]
[1741560726695,0.05725882,126.8,126.75,64.38296224]
[1741560728093,0.05725882,126.8,126.78,7.8878]
[1741560728593,0.05725882,126.8,126.75,32.24296224]
[1741560728594,0.05725882,126.8,126.79,7.8876]
[1741560728991,5.882e-05,126.8,126.79,7.8876]
[1741560729194,5.882e-05,126.8,126.79,40.0276]
[1741560729582,5.882e-05,126.8,126.77,32.24296224]
[1741560730390,5.882e-05,126.8,126.77,32.29326381]
[1741560731192,5.882e-05,126.8,126.79,7.8876]
[1741560731798,5.882e-05,126.8,126.77,32.29326381]
[1741560732092,5.882e-05,126.8,126.78,7.888]
[1741560732489,5.882e-05,126.8,126.77,32.29326381]
[1741560733896,9.8428,126.85,126.77,32.29326381]
[1741560734194,9.8428,126.85,126.77,32.24296224]
[1741560734395,9.8428,126.85,126.81,7.886]
[1741560734789,9.8997,126.86,126.8,32.24296224]
[1741560734990,0.05499385,126.84,126.82,7.94245882]
[1741560735798,0.05499385,126.84,126.82,0.05725882]
[1741560736396,4.85824769,126.83,126.82,0.05725882]
[1741560736588,4.85760118,126.83,126.78,7.8881]
[1741560736792,34.1562,126.86,126.78,7.8881]
[1741560736991,7.8854,126.83,126.76,292.42296224]
[1741560737187,34.1562,126.86,126.76,292.42296224]
[1741560737392,4.85870275,126.85,126.76,292.42296224]
[1741560737593,0.0534374,126.82,126.76,292.42296224]
[1741560738095,0.0534374,126.82,126.78,7.8878]
[1741560738700,7.9398374,126.82,126.78,7.8878]
[1741560738900,0.0534374,126.82,126.78,7.8878]
[1741560739095,0.0534374,126.82,126.77,7.8887]
[1741560739296,7.8875,126.8,126.77,7.8887]
[1741560739701,7.8866,126.81,126.78,7.8882]
[1741560739998,32.14,126.83,126.78,7.8882]
[1741560740194,7.94059197,126.81,126.78,7.8882]
[1741560740396,0.05379197,126.81,126.77,7.8886]
[1741560741202,7.8871,126.8,126.77,7.8886]
[1741560741804,7.8883,126.78,126.76,260.18]
[1741560742307,7.94297533,126.78,126.75,7.8901]
[1741560742497,7.94297533,126.78,126.74,32.14]
[1741560742699,0.05417533,126.78,126.73,160.25509733]
[1741560742905,0.05417533,126.78,126.77,7.8889]
[1741560743204,4.0555,126.82,126.77,32.14]
[1741560743396,11.9415,126.82,126.77,32.14]
[1741560743704,9.9093,126.82,126.77,32.14]
[1741560743904,2.0233,126.82,126.77,32.14]
[1741560744107,2.0233,126.82,126.78,32.24296224]
[1741560744307,0.05728237,126.81,126.78,32.29713757]
[1741560744503,0.05728237,126.81,126.8,7.8865]
[1741560744703,0.05728237,126.81,126.78,32.29713757]
[1741560745304,0.05728237,126.81,126.78,0.05417533]
[1741560745602,0.05728237,126.81,126.78,7.94207533]
[1741560745803,0.05728237,126.81,126.78,0.05417533]
[1741560746502,0.05728237,126.81,126.78,7.94217533]
[1741560746702,0.05728237,126.81,126.78,0.05417533]
[1741560747205,32.14,126.8,126.7,293.18786224]
[1741560747405,9.01090666,126.79,126.7,324.56296224]
[1741560747606,7.89,126.76,126.72,7.8916]
[1741560748301,0.05537053,126.75,126.72,28.05896178]
[1741560748503,0.05537053,126.75,126.74,7.8908]
[1741560748701,0.05537053,126.75,126.74,28.05816178]
[1741560748903,4.1509,126.79,126.74,20.16736178]
[1741560749103,4.1509,126.79,126.76,20.16736178]
[1741560749304,2.0863,126.79,126.76,20.16736178]
[1741560749501,32.14,126.82,126.76,20.16736178]
[1741560749705,25.02592232,126.81,126.73,32.14]
[1741560749900,4.85856054,126.8,126.72,20.16736178]
[1741560750112,7.8895,126.77,126.76,0.05537053]
[1741560750301,7.8895,126.77,126.72,20.16736178]
[1741560750614,7.8905,126.75,126.71,7.8925]
[1741560750908,2.10173821,126.78,126.68,52.30736178]
[1741560750909,32.14,126.76,126.68,52.30736178]
[1741560751112,7.8911,126.74,126.7,7.8931]
[1741560751414,32.14,126.76,126.68,52.30736178]
[1741560751608,0.05158115,126.73,126.68,52.30736178]
[1741560752109,0.05158115,126.73,126.7,20.16736178]
[1741560752310,0.05158115,126.73,126.69,32.27248743]
[1741560752911,0.05158115,126.73,126.69,7.8935]
[1741560753204,32.19158115,126.73,126.65,64.41248743]
[1741560753410,32.14,126.73,126.65,64.41248743]
[1741560753610,0.05475373,126.7,126.67,32.27248743]
[1741560755109,0.05475373,126.7,126.69,7.8939]
[1741560755308,0.05475373,126.7,126.67,32.27248743]
[1741560755814,0.05475373,126.7,126.68,7.8941]
[1741560756012,0.05475373,126.7,126.65,64.41248743]
[1741560756311,0.05475373,126.7,126.67,7.895]
[1741560756499,0.05475373,126.7,126.65,64.41248743]
[1741560756706,0.05475373,126.7,126.67,32.27248743]
[1741560757208,0.05475373,126.7,126.65,64.41248743]
[1741560757404,7.94835373,126.7,126.66,7.8954]
[1741560757611,0.05475373,126.7,126.65,64.41248743]
[1741560759209,0.05475373,126.7,126.67,32.27248743]
[1741560759407,0.05475373,126.7,126.69,7.8939]
[1741560759605,2.0245,126.76,126.69,32.27248743]
[1741560759810,2.0245,126.76,126.69,64.43248743]
[1741560760214,7.8904,126.75,126.71,7.8926]
[1741560760412,2.0245,126.76,126.69,64.43248743]
[1741560760714,9.9144,126.76,126.72,7.8916]
[1741560760912,0.05535119,126.74,126.72,7.8916]
[1741560762010,0.05535119,126.74,126.71,0.05214708]
[1741560762309,0.05535119,126.74,126.73,7.8914]
[1741560763614,0.05535119,126.74,126.71,0.05214708]
[1741560763810,0.05535119,126.74,126.72,7.8917]
[1741560764512,0.05535119,126.74,126.71,0.05214708]
[1741560765810,0.05535119,126.74,126.72,7.8916]
[1741560766207,0.05535119,126.74,126.71,0.05214708]
[1741560769410,0.05535119,126.74,126.72,7.8916]
[1741560771311,7.94645119,126.74,126.71,7.94444708]
[1741560771705,0.05535119,126.74,126.71,0.05214708]
[1741560772412,7.94615119,126.74,126.71,0.05214708]
[1741560773218,0.05535119,126.74,126.71,0.05214708]
[1741560773413,0.05535119,126.74,126.72,7.8916]
[1741560773816,7.94615119,126.74,126.72,7.8916]
[1741560774017,7.94615119,126.74,126.71,0.05214708]
[1741560774213,7.94615119,126.74,126.71,7.94434708]
[1741560775420,20.23050249,126.74,126.67,20.1751513]
[1741560775614,1.9144,126.73,126.65,52.3151513]
[1741560776118,7.8936,126.7,126.65,52.3151513]
[1741560776722,34.0825,126.72,126.65,52.3151513]
[1741560776723,0.05684878,126.69,126.65,52.3151513]
[1741560776918,0.05684878,126.69,126.67,20.1751513]
[1741560777319,0.05684878,126.69,126.68,7.8945]
[1741560779322,0.05684878,126.69,126.68,60.2096513]
[1741560781523,0.05684878,126.69,126.68,40.0345]
[1741560782116,2.0245,126.76,126.72,7.8919]
[1741560782324,4.86095603,126.75,126.68,52.3151513]
[1741560782519,2.0245,126.76,126.68,52.3151513]
[1741560782720,7.8914,126.73,126.7,7.8928]
[1741560782921,2.0245,126.76,126.68,52.3151513]
[1741560783122,7.8911,126.74,126.71,7.8921]
[1741560783319,0.0551639,126.73,126.71,7.95155543]
[1741560783522,0.0551639,126.73,126.71,0.05945543]
[1741560783722,0.0551639,126.73,126.72,28.0671513]
[1741560783917,0.0551639,126.73,126.72,7.892]
[1741560784422,0.0551639,126.73,126.71,0.05945543]
[1741560784822,7.9465639,126.73,126.71,0.05945543]
[1741560785825,0.0551639,126.73,126.71,0.05945543]
[1741560786022,7.892,126.72,126.71,0.05945543]
[1741560787520,7.892,126.72,126.68,7.8941]
[1741560787521,0.0551639,126.73,126.68,7.8941]
[1741560787722,7.8932,126.71,126.68,7.8941]
[1741560788426,7.8933,126.7,126.67,40.0548]
[1741560788824,7.94523655,126.7,126.67,7.8948]
[1741560789025,7.94523655,126.7,126.66,28.0704513]
[1741560789217,7.94523655,126.7,126.66,20.1751513]
[1741560789924,7.94523655,126.7,126.67,7.8951]
[1741560790729,0.05193655,126.7,126.67,7.8951]
[1741560790923,0.05193655,126.7,126.68,7.8944]
[1741560791225,0.05193655,126.7,126.66,20.1751513]
[1741560791529,7.94533655,126.7,126.66,20.1751513]
[1741560792028,7.94533655,126.7,126.67,7.8948]
[1741560792735,0.05193655,126.7,126.66,20.1751513]
[1741560793432,7.94543655,126.7,126.67,7.8948]
[1741560793621,0.05193655,126.7,126.66,20.1751513]
[1741560793828,7.8942,126.69,126.66,7.8954]
[1741560794029,0.05193655,126.7,126.64,280.3951513]
[1741560794230,38.95784659,126.69,126.62,20.1751513]
[1741560794430,4.87755108,126.68,126.62,20.1751513]
[1741560794733,0.05597001,126.67,126.62,20.1751513]
[1741560795127,0.05597001,126.67,126.66,7.8957]
[1741560795323,0.05597001,126.67,126.66,28.0708513]
[1741560796430,0.05597001,126.67,126.66,60.2308513]
[1741560798727,86.14243832,126.78,126.66,76.4503026]
[1741560798934,8.82570938,126.77,126.71,20.1751513]
[1741560799239,4.88640938,126.76,126.69,20.1751513]
[1741560799541,37.04640938,126.75,126.69,20.1751513]
[1741560799742,7.8911,126.74,126.7,7.8927]
[1741560800038,0.05801281,126.73,126.71,0.05113018]
[1741560801837,0.05801281,126.73,126.71,7.94333018]
[1741560802240,7.94941281,126.73,126.71,0.05113018]
[1741560803138,0.05801281,126.73,126.68,28.0693513]
[1741560803443,2.0473,126.72,126.66,20.1751513]
[1741560803841,2.0473,126.72,126.68,20.1751513]
[1741560804138,2.0473,126.72,126.69,7.8937]
[1741560804340,0.05401535,126.71,126.7,12.91372126]
[1741560805140,45.10773661,126.71,126.62,389.48286807]
[1741560805339,12.91372126,126.69,126.65,12.91372126]
[1741560805540,0.05901983,126.68,126.63,12.91372126]
[1741560805737,32.19901983,126.68,126.63,12.91372126]
[1741560805945,7.8961,126.66,126.63,12.91372126]
[1741560806244,2.0473,126.67,126.61,20.20234578]
[1741560806747,0.05771715,126.65,126.61,20.20234578]
[1741560807145,0.05771715,126.65,126.6,32.14]
[1741560807346,0.05771715,126.65,126.61,20.20234578]
[1741560807646,0.05771715,126.65,126.61,28.10074578]
[1741560808648,7.95461715,126.65,126.61,20.20234578]
[1741560809041,0.05771715,126.65,126.61,20.20234578]
[1741560809237,0.05771715,126.65,126.59,52.36234578]
[1741560809441,2.0367,126.66,126.59,52.36234578]
[1741560809649,7.8983,126.62,126.59,52.36234578]
[1741560810041,0.05513126,126.63,126.59,20.20234578]
[1741560810236,7.8995,126.6,126.57,20.20234578]
[1741560810440,32.16,126.65,126.57,20.20234578]
[1741560810645,7.9002,126.59,126.57,20.20234578]
[1741560810846,0.05315584,126.6,126.57,20.20234578]
[1741560811248,0.05315584,126.6,126.57,28.10364578]
[1741560811445,0.05315584,126.6,126.57,20.20234578]
[1741560812950,0.05315584,126.6,126.58,7.9007]
[1741560813142,0.05315584,126.6,126.56,260.4]
[1741560813143,0.05315584,126.6,126.56,280.60234578]
[1741560813449,0.05315584,126.6,126.58,7.9006]
[1741560813648,0.05315584,126.6,126.56,280.60234578]
[1741560814250,0.05315584,126.6,126.56,20.20234578]
[1741560814445,0.05315584,126.6,126.55,32.16]
[1741560814846,0.05315584,126.6,126.57,20.20234578]
[1741560815045,0.05315584,126.6,126.57,20.25234578]
[1741560815250,0.05315584,126.6,126.59,7.9001]
[1741560815649,0.05315584,126.6,126.57,7.9511]
[1741560815847,0.05315584,126.6,126.57,0.05]
[1741560816550,0.05315584,126.6,126.58,20.20234578]
[1741560816948,0.05315584,126.6,126.57,0.05]
[1741560817154,0.05315584,126.6,126.58,20.20234578]
[1741560817354,0.05315584,126.6,126.57,0.05]
[1741560818753,0.05315584,126.6,126.59,7.9001]
[1741560819548,0.05315584,126.6,126.57,0.05]
[1741560820049,0.05315584,126.6,126.58,7.9007]
[1741560820254,0.05315584,126.6,126.57,20.30234578]
[1741560820255,0.05315584,126.6,126.57,0.1]
[1741560820854,2.14215584,126.6,126.57,0.1]
[1741560821053,0.05315584,126.6,126.58,7.9004]
[1741560821259,0.05315584,126.6,126.57,20.30234578]
[1741560821460,0.05315584,126.6,126.57,0.1]
[1741560821959,0.05315584,126.6,126.58,20.20234578]
[1741560822258,0.05315584,126.6,126.59,7.9001]
[1741560822955,9.8569,126.65,126.58,20.20234578]
[1741560823156,1.9604,126.65,126.61,7.8983]
[1741560823457,1.9604,126.65,126.59,32.5]
[1741560823958,9.857,126.65,126.61,7.8985]
[1741560824160,0.05268688,126.63,126.61,7.95426419]
[1741560824555,0.05268688,126.63,126.62,7.8982]
[1741560824962,0.05268688,126.63,126.61,0.05576419]
[1741560825557,7.95078688,126.63,126.61,0.05576419]
[1741560825949,0.05268688,126.63,126.61,0.05576419]
[1741560826859,0.05268688,126.63,126.61,20.25810997]
[1741560827660,0.05268688,126.63,126.62,7.8982]
[1741560828051,0.05268688,126.63,126.61,0.05576419]
[1741560829458,0.05268688,126.63,126.61,7.95436419]
[1741560830255,0.05268688,126.63,126.62,7.8982]
[1741560830857,0.05268688,126.63,126.62,40.2782]
[1741560832459,0.05268688,126.63,126.62,7.8982]
[1741560833651,0.05268688,126.63,126.61,0.05576419]
[1741560835556,7.8982,126.62,126.61,0.05576419]
[1741560836158,7.95038688,126.63,126.61,0.05576419]
[1741560836359,0.05268688,126.63,126.61,0.05576419]
[1741560837459,0.05268688,126.63,126.57,0.1]
[1741560837660,20.20234578,126.6,126.51,20.20234578]
[1741560837860,36.2623,126.59,126.51,20.20234578]
[1741560838062,7.903,126.55,126.51,20.20234578]
[1741560838658,0.05595304,126.54,126.51,20.20234578]
[1741560839059,7.9039,126.53,126.49,180.86303308]
[1741560839259,0.05595304,126.54,126.49,180.86303308]
[1741560839461,32.38,126.53,126.48,86.98184948]
[1741560839662,7.905,126.52,126.48,86.98184948]
[1741560839862,34.4156,126.53,126.48,86.98184948]
[1741560840062,0.06054832,126.51,126.48,86.98184948]
[1741560841369,0.06054832,126.51,126.5,20.20234578]
[1741560841762,0.06054832,126.51,126.48,107.18419526]
[1741560842166,0.06054832,126.51,126.5,20.20234578]
[1741560842771,2.0454,126.56,126.5,52.86234578]
[1741560843069,2.0454,126.56,126.53,20.20234578]
[1741560843269,2.0275,126.57,126.5,32.66]
[1741560843464,2.0275,126.57,126.53,20.20234578]
[1741560843673,1.9156,126.61,126.55,20.20234578]
[1741560843870,1.9156,126.61,126.57,20.20234578]
[1741560844173,0.06034537,126.6,126.55,20.20234578]
[1741560844362,0.06034537,126.6,126.58,0.05430977]
[1741560848876,0.06034537,126.6,126.58,7.95460977]
[1741560849570,0.06034537,126.6,126.58,0.05430977]
[1741560849770,0.06034537,126.6,126.59,7.9001]
[1741560850670,0.06034537,126.6,126.58,28.15715555]